[Event "Titled Tuesday Blitz March 01 Late 2022"]
[White "Antonio, Jorge Carlos"]
[Black "Landaw, Julian"]
[WhiteFideId "113190"]
[BlackFideId "2023342"]
[WhiteElo "2247"]
[BlackElo "2312"]
[Result "1-0"]
[Round "01"]
[TimeControl "180+1"]
[Date "2022.03.02"]
[WhiteClock "0:00:29"]
[BlackClock "0:00:05"]

1. e4 {[%clk 0:03:00]}  e5 {[%clk 0:02:58]} 2. f4 {[%clk 0:02:59]}  Bc5 {[%clk 0:02:57]} 3. Nf3 {[%clk 0:02:58]}  d6 {[%clk 0:02:57]} 4. c3 {[%clk 0:02:55]}  Nf6 {[%clk 0:02:55]} 5. d4 {[%clk 0:02:54]}  exd4 {[%clk 0:02:56]} 6. cxd4 {[%clk 0:02:49]}  Bb6 {[%clk 0:02:56]} 7. Nc3 {[%clk 0:02:49]}  O-O {[%clk 0:02:52]} 8. e5 {[%clk 0:02:44]}  dxe5 {[%clk 0:02:51]} 9. fxe5 {[%clk 0:02:42]}  Nd5 {[%clk 0:02:39]} 10. Bg5 {[%clk 0:02:38]}  f6 {[%clk 0:02:30]} 11. Bc4 {[%clk 0:02:34]}  Be6 {[%clk 0:02:27]} 12. exf6 {[%clk 0:02:31]}  gxf6 {[%clk 0:02:25]} 13. Bh6 {[%clk 0:02:26]}  Rf7 {[%clk 0:02:26]} 14. Qe2 {[%clk 0:02:23]}  Re7 {[%clk 0:02:13]} 15. O-O {[%clk 0:02:21]}  Nc6 {[%clk 0:02:04]} 16. Qe4 {[%clk 0:02:11]}  f5 {[%clk 0:01:49]} 17. Qh4 {[%clk 0:02:08]}  Nxc3 {[%clk 0:01:21]} 18. Bxe6+ {[%clk 0:02:05]}  Rxe6 {[%clk 0:01:21]} 19. bxc3 {[%clk 0:02:04]}  Qxh4 {[%clk 0:01:20]} 20. Nxh4 {[%clk 0:01:53]}  Rxh6 {[%clk 0:01:18]} 21. Nxf5 {[%clk 0:01:53]}  Rf6 {[%clk 0:01:16]} 22. g4 {[%clk 0:01:49]}  Raf8 {[%clk 0:01:14]} 23. Rae1 {[%clk 0:01:44]}  Kh8 {[%clk 0:01:12]} 24. Kg2 {[%clk 0:01:41]}  Na5 {[%clk 0:01:03]} 25. Re7 {[%clk 0:01:38]}  Nc4 {[%clk 0:01:03]} 26. Rfe1 {[%clk 0:01:33]}  Rg6 {[%clk 0:00:54]} 27. Kf3 {[%clk 0:01:30]}  Nd6 {[%clk 0:00:52]} 28. R1e5 {[%clk 0:01:26]}  h5 {[%clk 0:00:40]} 29. h3 {[%clk 0:01:22]}  Nxf5 {[%clk 0:00:38]} 30. gxf5 {[%clk 0:01:16]}  Rg7 {[%clk 0:00:39]} 31. Ke4 {[%clk 0:01:11]}  Rff7 {[%clk 0:00:34]} 32. R7e6 {[%clk 0:01:04]}  Kh7 {[%clk 0:00:32]} 33. a4 {[%clk 0:00:55]}  c6 {[%clk 0:00:31]} 34. f6 {[%clk 0:00:52]}  Rg6 {[%clk 0:00:31]} 35. Rxh5+ {[%clk 0:00:49]}  Rh6 {[%clk 0:00:32]} 36. Rxh6+ {[%clk 0:00:45]}  Kxh6 {[%clk 0:00:33]} 37. Kf5 {[%clk 0:00:45]}  Bd8 {[%clk 0:00:32]} 38. c4 {[%clk 0:00:42]}  Kh5 {[%clk 0:00:28]} 39. d5 {[%clk 0:00:41]}  cxd5 {[%clk 0:00:28]} 40. cxd5 {[%clk 0:00:41]}  Kh4 {[%clk 0:00:29]} 41. Kg6 {[%clk 0:00:40]}  Rd7 {[%clk 0:00:03]} 42. f7 {[%clk 0:00:38]}  Rxd5 {[%clk 0:00:03]} 43. f8=Q {[%clk 0:00:35]}  Rg5+ {[%clk 0:00:04]} 44. Kh7 {[%clk 0:00:33]}  Bb6 {[%clk 0:00:04]} 45. Qh6+ {[%clk 0:00:30]}  Kg3 {[%clk 0:00:05]} 46. Rg6 {[%clk 0:00:29]} 1-0


[Site "https://www.chess.com"]

[Event "Titled Tuesday Blitz March 01 Late 2022"]
[White "Ardila, Oscar Humberto"]
[Black "Shuvalova, Polina"]
[WhiteFideId "4404742"]
[BlackFideId "24171760"]
[WhiteElo "1898"]
[BlackElo "2355"]
[Result "0-1"]
[Round "01"]
[TimeControl "180+1"]
[Date "2022.03.02"]
[WhiteClock "0:00:08"]
[BlackClock "0:00:04"]

1. d4 {[%clk 0:03:00]}  Nf6 {[%clk 0:02:57]} 2. c4 {[%clk 0:03:01]}  e6 {[%clk 0:02:54]} 3. Qc2 {[%clk 0:03:01]}  c5 {[%clk 0:02:51]} 4. dxc5 {[%clk 0:02:57]}  Bxc5 {[%clk 0:02:50]} 5. Nf3 {[%clk 0:02:55]}  O-O {[%clk 0:02:43]} 6. e3 {[%clk 0:02:55]}  b6 {[%clk 0:02:42]} 7. Bd3 {[%clk 0:02:55]}  Bb7 {[%clk 0:02:42]} 8. O-O {[%clk 0:02:53]}  Nc6 {[%clk 0:02:40]} 9. a3 {[%clk 0:02:51]}  Qc7 {[%clk 0:02:35]} 10. b4 {[%clk 0:02:49]}  Bd6 {[%clk 0:02:33]} 11. Bb2 {[%clk 0:02:49]}  Ne5 {[%clk 0:02:32]} 12. Nxe5 {[%clk 0:02:14]}  Bxe5 {[%clk 0:02:33]} 13. Nd2 {[%clk 0:02:12]}  Rac8 {[%clk 0:02:28]} 14. Rac1 {[%clk 0:02:11]}  Rfd8 {[%clk 0:02:25]} 15. Bd4 {[%clk 0:01:54]}  Bxh2+ {[%clk 0:02:19]} 16. Kh1 {[%clk 0:01:54]}  Be5 {[%clk 0:02:18]} 17. Qb2 {[%clk 0:01:48]}  Bxd4 {[%clk 0:02:14]} 18. exd4 {[%clk 0:01:48]}  Qf4 {[%clk 0:02:13]} 19. Kg1 {[%clk 0:01:05]}  Qg4 {[%clk 0:01:57]} 20. f3 {[%clk 0:00:42]}  Qh4 {[%clk 0:01:50]} 21. Rce1 {[%clk 0:00:35]}  h6 {[%clk 0:01:45]} 22. Ne4 {[%clk 0:00:33]}  d5 {[%clk 0:01:43]} 23. g3 {[%clk 0:00:25]}  Qh5 {[%clk 0:01:37]} 24. Nxf6+ {[%clk 0:00:24]}  gxf6 {[%clk 0:01:38]} 25. c5 {[%clk 0:00:21]}  Qg5 {[%clk 0:01:28]} 26. Qf2 {[%clk 0:00:20]}  e5 {[%clk 0:01:25]} 27. f4 {[%clk 0:00:17]}  exf4 {[%clk 0:01:19]} 28. Qxf4 {[%clk 0:00:18]}  bxc5 {[%clk 0:01:12]} 29. bxc5 {[%clk 0:00:18]}  Re8 {[%clk 0:01:05]} 30. Bf5 {[%clk 0:00:15]}  Rcd8 {[%clk 0:01:01]} 31. Rxe8+ {[%clk 0:00:09]}  Rxe8 {[%clk 0:01:01]} 32. Qxg5+ {[%clk 0:00:10]}  fxg5 {[%clk 0:01:00]} 33. Bd7 {[%clk 0:00:10]}  Rd8 {[%clk 0:00:51]} 34. c6 {[%clk 0:00:08]}  Bc8 {[%clk 0:00:51]} 35. Bxc8 {[%clk 0:00:07]}  Rxc8 {[%clk 0:00:52]} 36. Rf6 {[%clk 0:00:07]}  Kg7 {[%clk 0:00:33]} 37. Rd6 {[%clk 0:00:07]}  h5 {[%clk 0:00:27]} 38. Kf2 {[%clk 0:00:07]}  Kf8 {[%clk 0:00:28]} 39. Kf3 {[%clk 0:00:05]}  Ke7 {[%clk 0:00:28]} 40. Rxd5 {[%clk 0:00:06]}  Rxc6 {[%clk 0:00:25]} 41. Rxg5 {[%clk 0:00:06]}  Ra6 {[%clk 0:00:25]} 42. Rxh5 {[%clk 0:00:05]}  Rxa3+ {[%clk 0:00:26]} 43. Kf4 {[%clk 0:00:05]}  Ke6 {[%clk 0:00:24]} 44. Rb5 {[%clk 0:00:05]}  Ra4 {[%clk 0:00:18]} 45. Ke4 {[%clk 0:00:05]}  Ra1 {[%clk 0:00:15]} 46. g4 {[%clk 0:00:04]}  Re1+ {[%clk 0:00:14]} 47. Kf4 {[%clk 0:00:05]}  Rf1+ {[%clk 0:00:15]} 48. Ke4 {[%clk 0:00:05]}  Ra1 {[%clk 0:00:16]} 49. Re5+ {[%clk 0:00:05]}  Kf6 {[%clk 0:00:16]} 50. Rf5+ {[%clk 0:00:05]}  Ke6 {[%clk 0:00:16]} 51. Re5+ {[%clk 0:00:04]}  Kd6 {[%clk 0:00:16]} 52. Rf5 {[%clk 0:00:05]}  Ke7 {[%clk 0:00:15]} 53. Kd5 {[%clk 0:00:04]}  Ra5+ {[%clk 0:00:14]} 54. Kc6 {[%clk 0:00:05]}  Ra6+ {[%clk 0:00:05]} 55. Kc7 {[%clk 0:00:05]}  Ra4 {[%clk 0:00:05]} 56. d5 {[%clk 0:00:05]}  Rc4+ {[%clk 0:00:05]} 57. Kb7 {[%clk 0:00:05]}  Rxg4 {[%clk 0:00:06]} 58. Kxa7 {[%clk 0:00:04]}  Rc4 {[%clk 0:00:05]} 59. Kb6 {[%clk 0:00:04]}  Kd6 {[%clk 0:00:05]} 60. Rxf7 {[%clk 0:00:03]}  Kxd5 {[%clk 0:00:04]} 61. Rd7+ {[%clk 0:00:03]}  Ke6 {[%clk 0:00:05]} 62. Rd1 {[%clk 0:00:04]}  Rc2 {[%clk 0:00:05]} 63. Kb5 {[%clk 0:00:05]}  Re2 {[%clk 0:00:04]} 64. Kc4 {[%clk 0:00:05]}  Ke5 {[%clk 0:00:05]} 65. Kc3 {[%clk 0:00:06]}  Ra2 {[%clk 0:00:05]} 66. Kc4 {[%clk 0:00:06]}  Rc2+ {[%clk 0:00:05]} 67. Kb3 {[%clk 0:00:06]}  Rc8 {[%clk 0:00:06]} 68. Kb4 {[%clk 0:00:06]}  Ke4 {[%clk 0:00:06]} 69. Kb5 {[%clk 0:00:07]}  Rc2 {[%clk 0:00:03]} 70. Rd7 {[%clk 0:00:07]}  Ke3 {[%clk 0:00:03]} 71. Kb4 {[%clk 0:00:07]}  Rd2 {[%clk 0:00:04]} 72. Kb3 {[%clk 0:00:08]}  Rxd7 {[%clk 0:00:04]} 0-1


[Site "https://www.chess.com"]

[Event "Titled Tuesday Blitz March 01 Late 2022"]
[White "Artemenko, Oleg"]
[Black "Stanisz, Patryk"]
[WhiteFideId "14201798"]
[BlackFideId "1123106"]
[WhiteElo "2287"]
[BlackElo "1876"]
[Result "1-0"]
[Round "01"]
[TimeControl "180+1"]
[Date "2022.03.02"]
[WhiteClock "0:01:37"]
[BlackClock "0:00:02"]

1. d4 {[%clk 0:03:00]}  d5 {[%clk 0:02:58]} 2. Nc3 {[%clk 0:03:01]}  c6 {[%clk 0:02:58]} 3. Bf4 {[%clk 0:03:01]}  Bf5 {[%clk 0:02:55]} 4. f3 {[%clk 0:03:01]}  h6 {[%clk 0:02:54]} 5. e4 {[%clk 0:02:59]}  Bh7 {[%clk 0:02:54]} 6. exd5 {[%clk 0:02:56]}  cxd5 {[%clk 0:02:54]} 7. Nb5 {[%clk 0:02:55]}  Na6 {[%clk 0:02:42]} 8. c3 {[%clk 0:02:55]}  g5 {[%clk 0:02:23]} 9. Be5 {[%clk 0:02:50]}  Nf6 {[%clk 0:02:18]} 10. Bd3 {[%clk 0:02:50]}  Bxd3 {[%clk 0:02:14]} 11. Qxd3 {[%clk 0:02:51]}  Bg7 {[%clk 0:02:14]} 12. Ne2 {[%clk 0:02:49]}  Qb6 {[%clk 0:02:00]} 13. a4 {[%clk 0:02:46]}  O-O {[%clk 0:01:55]} 14. O-O {[%clk 0:02:43]}  Nh5 {[%clk 0:01:44]} 15. Bxg7 {[%clk 0:02:40]}  Nxg7 {[%clk 0:01:45]} 16. f4 {[%clk 0:02:40]}  g4 {[%clk 0:01:28]} 17. f5 {[%clk 0:02:38]}  Qf6 {[%clk 0:01:27]} 18. Nf4 {[%clk 0:02:36]}  Qxf5 {[%clk 0:01:18]} 19. Qxf5 {[%clk 0:02:35]}  Nxf5 {[%clk 0:01:19]} 20. Nxd5 {[%clk 0:02:36]}  e6 {[%clk 0:01:19]} 21. Nf6+ {[%clk 0:02:35]}  Kg7 {[%clk 0:01:19]} 22. Nxg4 {[%clk 0:02:35]}  h5 {[%clk 0:01:15]} 23. Ne5 {[%clk 0:02:33]}  h4 {[%clk 0:01:15]} 24. Rf3 {[%clk 0:02:29]}  f6 {[%clk 0:01:13]} 25. Nd3 {[%clk 0:02:29]}  Rfe8 {[%clk 0:00:57]} 26. Raf1 {[%clk 0:02:24]}  Re7 {[%clk 0:00:54]} 27. Nf4 {[%clk 0:02:24]}  Nh6 {[%clk 0:00:44]} 28. Nh5+ {[%clk 0:02:24]}  Kg6 {[%clk 0:00:30]} 29. Nxf6 {[%clk 0:02:23]}  Rf8 {[%clk 0:00:27]} 30. Nd7 {[%clk 0:02:23]}  Rxf3 {[%clk 0:00:27]} 31. Ne5+ {[%clk 0:02:23]}  Kg7 {[%clk 0:00:26]} 32. Rxf3 {[%clk 0:02:22]}  Nf5 {[%clk 0:00:27]} 33. Nxa7 {[%clk 0:02:20]}  Nc7 {[%clk 0:00:27]} 34. Nb5 {[%clk 0:02:16]}  Nd5 {[%clk 0:00:27]} 35. g4 {[%clk 0:02:11]}  hxg3 {[%clk 0:00:26]} 36. hxg3 {[%clk 0:02:12]}  Nf6 {[%clk 0:00:22]} 37. g4 {[%clk 0:02:06]}  Nh4 {[%clk 0:00:20]} 38. Rh3 {[%clk 0:02:05]}  Ng6 {[%clk 0:00:20]} 39. g5 {[%clk 0:02:04]}  Ne4 {[%clk 0:00:16]} 40. Nxg6 {[%clk 0:02:01]}  Kxg6 {[%clk 0:00:17]} 41. Re3 {[%clk 0:01:59]}  Nxg5 {[%clk 0:00:17]} 42. c4 {[%clk 0:01:58]}  Rh7 {[%clk 0:00:16]} 43. Nd6 {[%clk 0:01:55]}  Kf6 {[%clk 0:00:13]} 44. Ne4+ {[%clk 0:01:53]}  Nxe4 {[%clk 0:00:14]} 45. Rxe4 {[%clk 0:01:54]}  Rh3 {[%clk 0:00:14]} 46. Rf4+ {[%clk 0:01:46]}  Ke7 {[%clk 0:00:14]} 47. b4 {[%clk 0:01:43]}  Rc3 {[%clk 0:00:13]} 48. c5 {[%clk 0:01:41]}  Rc4 {[%clk 0:00:13]} 49. Rh4 {[%clk 0:01:37]}  Rxb4 {[%clk 0:00:13]} 50. Kf2 {[%clk 0:01:38]}  Rxa4 {[%clk 0:00:12]} 51. Ke3 {[%clk 0:01:38]}  Kd7 {[%clk 0:00:08]} 52. Ke4 {[%clk 0:01:38]}  Rb4 {[%clk 0:00:07]} 53. Ke5 {[%clk 0:01:38]}  b6 {[%clk 0:00:06]} 54. Rh7+ {[%clk 0:01:38]}  Kc6 {[%clk 0:00:06]} 55. cxb6 {[%clk 0:01:38]}  Rxb6 {[%clk 0:00:03]} 56. Kxe6 {[%clk 0:01:37]}  Kb5+ {[%clk 0:00:02]} 57. Ke5 {[%clk 0:01:37]}  Kc4 {[%clk 0:00:02]} 58. d5 {[%clk 0:01:37]}  Rb1 {[%clk 0:00:02]} 59. Rc7+ {[%clk 0:01:37]}  Kb5 {[%clk 0:00:01]} 60. Rb7+ {[%clk 0:01:36]}  Kc5 {[%clk 0:00:02]} 61. Rxb1 {[%clk 0:01:37]} 1-0


[Site "https://www.chess.com"]

[Event "Titled Tuesday Blitz March 01 Late 2022"]
[White "Ashiev, Eduard"]
[Black "Fishbein, Alexander"]
[WhiteFideId "4130090"]
[BlackFideId "2000377"]
[WhiteElo "2004"]
[BlackElo "2442"]
[Result "1/2-1/2"]
[Round "01"]
[TimeControl "180+1"]
[Date "2022.03.02"]
[WhiteClock "0:00:12"]
[BlackClock "0:00:52"]

1. d4 {[%clk 0:02:59]}  Nf6 {[%clk 0:02:58]} 2. Nf3 {[%clk 0:02:54]}  g6 {[%clk 0:02:57]} 3. c4 {[%clk 0:02:53]}  Bg7 {[%clk 0:02:57]} 4. Nc3 {[%clk 0:02:54]}  O-O {[%clk 0:02:57]} 5. e4 {[%clk 0:02:53]}  d6 {[%clk 0:02:57]} 6. h3 {[%clk 0:02:53]}  a6 {[%clk 0:02:56]} 7. Bg5 {[%clk 0:02:50]}  c5 {[%clk 0:02:54]} 8. d5 {[%clk 0:02:47]}  b5 {[%clk 0:02:53]} 9. Bd3 {[%clk 0:02:42]}  b4 {[%clk 0:02:53]} 10. Ne2 {[%clk 0:02:36]}  e6 {[%clk 0:02:53]} 11. O-O {[%clk 0:02:34]}  exd5 {[%clk 0:02:52]} 12. exd5 {[%clk 0:02:20]}  h6 {[%clk 0:02:48]} 13. Be3 {[%clk 0:02:14]}  Re8 {[%clk 0:02:44]} 14. Qd2 {[%clk 0:02:09]}  Kh7 {[%clk 0:02:43]} 15. Ng3 {[%clk 0:02:08]}  Nbd7 {[%clk 0:02:34]} 16. Rfe1 {[%clk 0:02:03]}  Ne5 {[%clk 0:02:33]} 17. Nxe5 {[%clk 0:01:59]}  Rxe5 {[%clk 0:02:32]} 18. Bf4 {[%clk 0:01:58]}  Rxe1+ {[%clk 0:02:24]} 19. Rxe1 {[%clk 0:01:56]}  Ra7 {[%clk 0:02:25]} 20. b3 {[%clk 0:01:39]}  Re7 {[%clk 0:02:24]} 21. Re3 {[%clk 0:01:36]}  a5 {[%clk 0:02:00]} 22. Qe2 {[%clk 0:01:32]}  Rxe3 {[%clk 0:02:00]} 23. Qxe3 {[%clk 0:01:32]}  Bf8 {[%clk 0:01:55]} 24. h4 {[%clk 0:01:21]}  Qe8 {[%clk 0:01:52]} 25. Qxe8 {[%clk 0:01:07]}  Nxe8 {[%clk 0:01:52]} 26. h5 {[%clk 0:01:07]}  Kg7 {[%clk 0:01:49]} 27. hxg6 {[%clk 0:01:04]}  fxg6 {[%clk 0:01:49]} 28. Kf1 {[%clk 0:00:53]}  Be7 {[%clk 0:01:48]} 29. Ke2 {[%clk 0:00:52]}  h5 {[%clk 0:01:41]} 30. Ne4 {[%clk 0:00:51]}  Bf5 {[%clk 0:01:39]} 31. f3 {[%clk 0:00:49]}  Bxe4 {[%clk 0:01:33]} 32. Bxe4 {[%clk 0:00:48]}  Bf6 {[%clk 0:01:32]} 33. Bb1 {[%clk 0:00:38]}  Be5 {[%clk 0:01:32]} 34. Bg5 {[%clk 0:00:32]}  Bf6 {[%clk 0:01:24]} 35. Bf4 {[%clk 0:00:30]}  g5 {[%clk 0:01:22]} 36. Be3 {[%clk 0:00:23]}  Kf7 {[%clk 0:01:17]} 37. Bf5 {[%clk 0:00:22]}  Ng7 {[%clk 0:01:14]} 38. Bd7 {[%clk 0:00:20]}  h4 {[%clk 0:01:14]} 39. Bg4 {[%clk 0:00:18]}  Ke7 {[%clk 0:01:08]} 40. Kd3 {[%clk 0:00:17]}  Kf7 {[%clk 0:01:02]} 41. Ke4 {[%clk 0:00:17]}  Be7 {[%clk 0:00:58]} 42. Bd2 {[%clk 0:00:16]}  Kf6 {[%clk 0:00:57]} 43. Bc1 {[%clk 0:00:15]}  Kg6 {[%clk 0:00:55]} 44. Bb2 {[%clk 0:00:14]}  Ne8 {[%clk 0:00:55]} 45. Bf5+ {[%clk 0:00:13]}  Kf7 {[%clk 0:00:52]} 46. Be6+ {[%clk 0:00:12]}  Kg6 {[%clk 0:00:52]} 47. Bf5+ {[%clk 0:00:12]}  Kf7 {[%clk 0:00:52]} 48. Be6+ {[%clk 0:00:12]}  Kg6 {[%clk 0:00:52]} 49. Bf5+ {[%clk 0:00:12]} 1/2-1/2


[Site "https://www.chess.com"]

[Event "Titled Tuesday Blitz March 01 Late 2022"]
[White "Atanejhad, Sahebali"]
[Black "Vastrukhin, Oleg"]
[WhiteFideId "12506664"]
[BlackFideId "4192770"]
[WhiteElo "1978"]
[BlackElo "2483"]
[Result "0-1"]
[Round "01"]
[TimeControl "180+1"]
[Date "2022.03.02"]
[WhiteClock "0:01:56"]
[BlackClock "0:02:20"]

1. d4 {[%clk 0:02:58]}  g6 {[%clk 0:02:59]} 2. c4 {[%clk 0:02:58]}  Bg7 {[%clk 0:03:00]} 3. Nf3 {[%clk 0:02:55]}  d6 {[%clk 0:02:58]} 4. Nc3 {[%clk 0:02:55]}  e5 {[%clk 0:02:58]} 5. dxe5 {[%clk 0:02:55]}  dxe5 {[%clk 0:02:59]} 6. Qxd8+ {[%clk 0:02:55]}  Kxd8 {[%clk 0:03:00]} 7. Bg5+ {[%clk 0:02:54]}  f6 {[%clk 0:03:00]} 8. O-O-O+ {[%clk 0:02:53]}  Bd7 {[%clk 0:03:00]} 9. Bd2 {[%clk 0:02:51]}  c6 {[%clk 0:03:00]} 10. g3 {[%clk 0:02:50]}  Kc7 {[%clk 0:03:00]} 11. Bg2 {[%clk 0:02:50]}  Be6 {[%clk 0:02:57]} 12. b3 {[%clk 0:02:49]}  Nd7 {[%clk 0:02:57]} 13. Ne1 {[%clk 0:02:49]}  Nh6 {[%clk 0:02:55]} 14. h3 {[%clk 0:02:49]}  Nf7 {[%clk 0:02:55]} 15. e4 {[%clk 0:02:48]}  Rad8 {[%clk 0:02:54]} 16. Be3 {[%clk 0:02:46]}  Bh6 {[%clk 0:02:52]} 17. f4 {[%clk 0:02:44]}  Rhe8 {[%clk 0:02:44]} 18. Kc2 {[%clk 0:02:43]}  Nd6 {[%clk 0:02:41]} 19. Nd3 {[%clk 0:02:39]}  exf4 {[%clk 0:02:36]} 20. gxf4 {[%clk 0:02:33]}  Bg8 {[%clk 0:02:36]} 21. Bxa7 {[%clk 0:02:28]}  b6 {[%clk 0:02:29]} 22. c5 {[%clk 0:02:28]}  bxc5 {[%clk 0:02:28]} 23. Bxc5 {[%clk 0:02:23]}  Nxc5 {[%clk 0:02:28]} 24. Nxc5 {[%clk 0:02:24]}  Bxf4 {[%clk 0:02:28]} 25. h4 {[%clk 0:02:03]}  Be5 {[%clk 0:02:25]} 26. h5 {[%clk 0:02:02]}  g5 {[%clk 0:02:25]} 27. N3a4 {[%clk 0:01:58]}  Nb5 {[%clk 0:02:22]} 28. Rxd8 {[%clk 0:01:57]}  Rxd8 {[%clk 0:02:23]} 29. Rd1 {[%clk 0:01:57]}  Na3+ {[%clk 0:02:21]} 30. Kc1 {[%clk 0:01:56]}  Bf4+ {[%clk 0:02:20]} 0-1


[Site "https://www.chess.com"]

[Event "Titled Tuesday Blitz March 01 Late 2022"]
[White "Bacrot, Etienne"]
[Black "Rangel, Daniel"]
[WhiteFideId "605506"]
[BlackFideId "2124475"]
[WhiteElo "2673"]
[BlackElo "2187"]
[Result "1-0"]
[Round "01"]
[TimeControl "180+1"]
[Date "2022.03.01"]
[WhiteClock "0:01:25"]
[BlackClock "0:00:03"]

1. e4 {[%clk 0:02:59]}  c6 {[%clk 0:02:50]} 2. c4 {[%clk 0:02:58]}  d5 {[%clk 0:02:50]} 3. exd5 {[%clk 0:02:58]}  cxd5 {[%clk 0:02:50]} 4. d4 {[%clk 0:02:58]}  Nf6 {[%clk 0:02:49]} 5. Nc3 {[%clk 0:02:59]}  g6 {[%clk 0:02:49]} 6. Nf3 {[%clk 0:02:58]}  Bg7 {[%clk 0:02:48]} 7. c5 {[%clk 0:02:56]}  O-O {[%clk 0:02:47]} 8. Be2 {[%clk 0:02:56]}  Bf5 {[%clk 0:02:46]} 9. O-O {[%clk 0:02:56]}  b6 {[%clk 0:02:41]} 10. b4 {[%clk 0:02:56]}  a5 {[%clk 0:02:31]} 11. b5 {[%clk 0:02:52]}  bxc5 {[%clk 0:02:29]} 12. dxc5 {[%clk 0:02:52]}  Ne4 {[%clk 0:02:28]} 13. Nxe4 {[%clk 0:02:50]}  dxe4 {[%clk 0:02:18]} 14. Be3 {[%clk 0:02:48]}  Bxa1 {[%clk 0:02:13]} 15. Qxa1 {[%clk 0:02:47]}  exf3 {[%clk 0:02:13]} 16. Bxf3 {[%clk 0:02:48]}  Ra7 {[%clk 0:01:49]} 17. c6 {[%clk 0:02:47]}  Rc7 {[%clk 0:01:45]} 18. Bh6 {[%clk 0:02:22]}  f6 {[%clk 0:01:43]} 19. Rd1 {[%clk 0:02:19]}  Qc8 {[%clk 0:01:34]} 20. Qd4 {[%clk 0:02:18]}  Be6 {[%clk 0:01:12]} 21. Bxf8 {[%clk 0:02:11]}  Kxf8 {[%clk 0:01:07]} 22. h4 {[%clk 0:02:04]}  Bxa2 {[%clk 0:00:49]} 23. Qd8+ {[%clk 0:01:56]}  Kf7 {[%clk 0:00:41]} 24. b6 {[%clk 0:01:44]}  Qxd8 {[%clk 0:00:28]} 25. Rxd8 {[%clk 0:01:41]}  Rxc6 {[%clk 0:00:27]} 26. Rxb8 {[%clk 0:01:31]}  Rc1+ {[%clk 0:00:16]} 27. Kh2 {[%clk 0:01:31]}  Bc4 {[%clk 0:00:09]} 28. Ra8 {[%clk 0:01:25]}  Rb1 {[%clk 0:00:03]} 29. b7 {[%clk 0:01:25]} 1-0


[Site "https://www.chess.com"]

[Event "Titled Tuesday Blitz March 01 Late 2022"]
[White "Beerdsen, Thomas"]
[Black "Jarocka, Liwia"]
[WhiteFideId "1030108"]
[BlackFideId "21807558"]
[WhiteElo "2585"]
[BlackElo "1896"]
[Result "1-0"]
[Round "01"]
[TimeControl "180+1"]
[Date "2022.03.02"]
[WhiteClock "0:02:13"]
[BlackClock "0:00:06"]

1. e4 {[%clk 0:02:59]}  d6 {[%clk 0:02:58]} 2. d4 {[%clk 0:02:59]}  Nf6 {[%clk 0:02:58]} 3. Nc3 {[%clk 0:02:59]}  e5 {[%clk 0:02:57]} 4. Nf3 {[%clk 0:03:00]}  Nbd7 {[%clk 0:02:56]} 5. g4 {[%clk 0:03:01]}  exd4 {[%clk 0:02:54]} 6. Qxd4 {[%clk 0:03:00]}  Nc5 {[%clk 0:02:50]} 7. g5 {[%clk 0:02:58]}  Nfd7 {[%clk 0:02:47]} 8. Be3 {[%clk 0:02:56]}  Ne6 {[%clk 0:02:43]} 9. Qd2 {[%clk 0:02:56]}  Ne5 {[%clk 0:02:42]} 10. Be2 {[%clk 0:02:56]}  Nxf3+ {[%clk 0:02:40]} 11. Bxf3 {[%clk 0:02:57]}  Be7 {[%clk 0:02:41]} 12. h4 {[%clk 0:02:57]}  Bd7 {[%clk 0:02:40]} 13. O-O-O {[%clk 0:02:57]}  Bc6 {[%clk 0:02:38]} 14. Nd5 {[%clk 0:02:55]}  Qd7 {[%clk 0:02:34]} 15. Kb1 {[%clk 0:02:54]}  O-O-O {[%clk 0:02:24]} 16. Bxa7 {[%clk 0:02:48]}  Bxd5 {[%clk 0:02:11]} 17. Qxd5 {[%clk 0:02:41]}  Qa4 {[%clk 0:01:46]} 18. Be3 {[%clk 0:02:39]}  Qa6 {[%clk 0:01:26]} 19. Rd3 {[%clk 0:02:36]}  Qc6 {[%clk 0:01:22]} 20. Qf5 {[%clk 0:02:35]}  Rhf8 {[%clk 0:01:03]} 21. Rc3 {[%clk 0:02:35]}  Qd7 {[%clk 0:00:59]} 22. Qa5 {[%clk 0:02:34]}  Qe8 {[%clk 0:00:48]} 23. Bg4 {[%clk 0:02:34]}  c5 {[%clk 0:00:31]} 24. f4 {[%clk 0:02:26]}  Qc6 {[%clk 0:00:14]} 25. f5 {[%clk 0:02:13]}  Qxe4 {[%clk 0:00:13]} 26. Rg1 {[%clk 0:02:14]}  Kb8 {[%clk 0:00:08]} 27. Ra3 {[%clk 0:02:12]}  Nc7 {[%clk 0:00:06]} 28. f6 {[%clk 0:02:12]}  gxf6 {[%clk 0:00:06]} 29. Qa7# {[%clk 0:02:13]} 1-0


[Site "https://www.chess.com"]

[Event "Titled Tuesday Blitz March 01 Late 2022"]
[White "Bibasa, Bob"]
[Black "Saim, Mohamed Ilias"]
[WhiteFideId "10000240"]
[BlackFideId "7900465"]
[WhiteElo "2056"]
[BlackElo "2006"]
[Result "1-0"]
[Round "01"]
[TimeControl "180+1"]
[Date "2022.03.02"]
[WhiteClock "0:02:11"]
[BlackClock "0:00:35"]

1. e4 {[%clk 0:03:00]}  c5 {[%clk 0:03:00]} 2. Nf3 {[%clk 0:03:00]}  a6 {[%clk 0:02:59]} 3. c3 {[%clk 0:02:59]}  e6 {[%clk 0:02:56]} 4. d4 {[%clk 0:02:59]}  cxd4 {[%clk 0:02:55]} 5. cxd4 {[%clk 0:02:59]}  Qc7 {[%clk 0:02:53]} 6. Nc3 {[%clk 0:02:59]}  Bb4 {[%clk 0:02:46]} 7. Bd2 {[%clk 0:02:59]}  Ne7 {[%clk 0:02:44]} 8. Rc1 {[%clk 0:02:57]}  Qd8 {[%clk 0:02:17]} 9. a3 {[%clk 0:02:52]}  Ba5 {[%clk 0:02:13]} 10. Bd3 {[%clk 0:02:47]}  Nbc6 {[%clk 0:02:13]} 11. O-O {[%clk 0:02:47]}  Bc7 {[%clk 0:02:11]} 12. d5 {[%clk 0:02:46]}  Ne5 {[%clk 0:02:06]} 13. Nxe5 {[%clk 0:02:42]}  Bxe5 {[%clk 0:02:06]} 14. Be3 {[%clk 0:02:37]}  O-O {[%clk 0:02:03]} 15. f4 {[%clk 0:02:32]}  Bxc3 {[%clk 0:02:03]} 16. Rxc3 {[%clk 0:02:26]}  exd5 {[%clk 0:02:03]} 17. exd5 {[%clk 0:02:26]}  Nxd5 {[%clk 0:02:03]} 18. Bxh7+ {[%clk 0:02:27]}  Kxh7 {[%clk 0:02:00]} 19. Qxd5 {[%clk 0:02:27]}  Qe7 {[%clk 0:01:44]} 20. Bc5 {[%clk 0:02:24]}  d6 {[%clk 0:01:36]} 21. Bxd6 {[%clk 0:02:23]}  Qd7 {[%clk 0:01:35]} 22. Qh5+ {[%clk 0:02:23]}  Kg8 {[%clk 0:01:30]} 23. Bxf8 {[%clk 0:02:24]}  Qd4+ {[%clk 0:01:13]} 24. Kh1 {[%clk 0:02:24]}  Be6 {[%clk 0:00:54]} 25. Bc5 {[%clk 0:02:22]}  Qd2 {[%clk 0:00:46]} 26. f5 {[%clk 0:02:15]}  Bd5 {[%clk 0:00:43]} 27. Rg3 {[%clk 0:02:12]}  Re8 {[%clk 0:00:40]} 28. f6 {[%clk 0:02:10]}  g6 {[%clk 0:00:38]} 29. Rxg6+ {[%clk 0:02:10]}  fxg6 {[%clk 0:00:35]} 30. Qxg6+ {[%clk 0:02:10]}  Kh8 {[%clk 0:00:35]} 31. Qg7# {[%clk 0:02:11]} 1-0


[Site "https://www.chess.com"]